[Event "Early-Titled-Tuesday-Blitz-May-14-2024"]
[Site "Chess.com"]
[Date "2024.05.14"]
[Round "10"]
[White "LeoLV10"]
[Black "sergeikim"]
[Result "0-1"]
[WhiteElo "2511"]
[BlackElo "2626"]
[TimeControl "180+1"]
[EndTime "9:57:39 PDT"]
[Termination "sergeikim won by checkmate"]

1. e4 {[%clk 0:03:00.9]} 1... e5 {[%clk 0:02:59.8]} 2. Nf3 {[%clk 0:03:01.2]}
2... Nc6 {[%clk 0:02:59.4]} 3. Bb5 {[%clk 0:03:01.5]} 3... a6 {[%clk 0:02:59.7]}
4. Ba4 {[%clk 0:03:02]} 4... Nf6 {[%clk 0:02:59.6]} 5. O-O {[%clk 0:03:02.1]}
5... b5 {[%clk 0:02:59.7]} 6. Bb3 {[%clk 0:03:01.7]} 6... Bc5 {[%clk 0:02:59.8]}
7. c3 {[%clk 0:03:01]} 7... d6 {[%clk 0:03:00]} 8. a4 {[%clk 0:03:01.2]} 8...
Bb7 {[%clk 0:02:59.5]} 9. d4 {[%clk 0:02:58.2]} 9... Bb6 {[%clk 0:02:59.3]} 10.
Re1 {[%clk 0:02:56.3]} 10... h6 {[%clk 0:02:58.6]} 11. h3 {[%clk 0:02:55.9]}
11... O-O {[%clk 0:02:58.4]} 12. axb5 {[%clk 0:02:53.1]} 12... axb5 {[%clk
0:02:57.7]} 13. Rxa8 {[%clk 0:02:54]} 13... Qxa8 {[%clk 0:02:52.4]} 14. d5
{[%clk 0:02:46.6]} 14... Na5 {[%clk 0:02:42]} 15. Bc2 {[%clk 0:02:46.2]} 15...
Rd8 {[%clk 0:02:35]} 16. Nh4 {[%clk 0:02:37.7]} 16... Bc8 {[%clk 0:02:21.9]} 17.
Qf3 {[%clk 0:02:36]} 17... Nh7 {[%clk 0:02:21.5]} 18. Na3 {[%clk 0:02:30.6]}
18... c6 {[%clk 0:02:18.3]} 19. dxc6 {[%clk 0:02:03.4]} 19... Qxc6 {[%clk
0:02:16.6]} 20. Nf5 {[%clk 0:02:02.1]} 20... Bxf5 {[%clk 0:02:15.3]} 21. Qxf5
{[%clk 0:02:02.5]} 21... Nc4 {[%clk 0:02:10.3]} 22. Nxc4 {[%clk 0:02:01.7]}
22... bxc4 {[%clk 0:02:09.6]} 23. Qf3 {[%clk 0:02:00.8]} 23... Nf8 {[%clk
0:02:06.1]} 24. h4 {[%clk 0:01:50.8]} 24... Ne6 {[%clk 0:02:03.9]} 25. h5 {[%clk
0:01:49.1]} 25... Ra8 {[%clk 0:01:57.3]} 26. Rd1 {[%clk 0:01:46.7]} 26... Bc5
{[%clk 0:01:50.9]} 27. b4 {[%clk 0:01:43.9]} 27... cxb3 {[%clk 0:01:47.7]} 28.
Bxb3 {[%clk 0:01:44.3]} 28... Rb8 {[%clk 0:01:46.1]} 29. Bd5 {[%clk 0:01:43.6]}
29... Qe8 {[%clk 0:01:44.3]} 30. Qg4 {[%clk 0:01:41.1]} 30... Kh8 {[%clk
0:01:42.6]} 31. Qe2 {[%clk 0:01:29.5]} 31... Qe7 {[%clk 0:01:39.5]} 32. Be3
{[%clk 0:01:26.3]} 32... Bxe3 {[%clk 0:01:34.4]} 33. Qxe3 {[%clk 0:01:27.2]}
33... Nf4 {[%clk 0:01:33.2]} 34. Qf3 {[%clk 0:01:25.9]} 34... Rb2 {[%clk
0:01:21.6]} 35. g3 {[%clk 0:01:25.7]} 35... Nh3+ {[%clk 0:01:20.4]} 36. Kh1
{[%clk 0:01:21.6]} 36... Nxf2+ {[%clk 0:01:19.8]} 37. Kg1 {[%clk 0:01:16.6]}
37... Nxd1 {[%clk 0:01:18.7]} 38. Qxd1 {[%clk 0:01:17.1]} 38... Qg5 {[%clk
0:01:15.9]} 39. Qe1 {[%clk 0:01:15]} 39... Rc2 {[%clk 0:01:10.4]} 40. Bb3 {[%clk
0:01:08.9]} 40... Rc1 {[%clk 0:01:07.9]} 41. Bd1 {[%clk 0:01:09.1]} 41... Qg4
{[%clk 0:01:05.7]} 42. Bxg4 {[%clk 0:01:08.4]} 42... Rxe1+ {[%clk 0:01:06.1]}
43. Kf2 {[%clk 0:01:09.2]} 43... Rxe4 {[%clk 0:01:06.2]} 44. Bf3 {[%clk
0:00:57.4]} 44... Rc4 {[%clk 0:01:06]} 45. Bd5 {[%clk 0:00:58.3]} 45... Rxc3
{[%clk 0:01:06.1]} 46. Bxf7 {[%clk 0:00:59.2]} 46... Rd3 {[%clk 0:01:03.4]} 47.
g4 {[%clk 0:00:57.7]} 47... d5 {[%clk 0:01:02.8]} 48. Ke2 {[%clk 0:00:57.7]}
48... e4 {[%clk 0:01:02.8]} 49. Be6 {[%clk 0:00:56.6]} 49... Rg3 {[%clk
0:00:55.4]} 50. Bxd5 {[%clk 0:00:53.3]} 50... Rxg4 {[%clk 0:00:55.3]} 51. Ke3
{[%clk 0:00:53.3]} 51... Rh4 {[%clk 0:00:53.5]} 52. Bf7 {[%clk 0:00:53.4]} 52...
Kh7 {[%clk 0:00:49.1]} 53. Kd4 {[%clk 0:00:47.8]} 53... Rf4 {[%clk 0:00:46.2]}
54. Bg6+ {[%clk 0:00:42.3]} 54... Kg8 {[%clk 0:00:45.8]} 55. Bxe4 {[%clk
0:00:42.9]} 55... Rh4 {[%clk 0:00:44.9]} 56. Ke3 {[%clk 0:00:40.8]} 56... Rxh5
{[%clk 0:00:44.5]} 57. Bg6 {[%clk 0:00:40.7]} 57... Rg5 {[%clk 0:00:44.2]} 58.
Be8 {[%clk 0:00:40.4]} 58... Kf8 {[%clk 0:00:44.4]} 59. Bc6 {[%clk 0:00:41.3]}
59... Ke7 {[%clk 0:00:44.6]} 60. Kf4 {[%clk 0:00:42.2]} 60... Kf6 {[%clk
0:00:44.7]} 61. Be4 {[%clk 0:00:43.1]} 61... Ra5 {[%clk 0:00:44.3]} 62. Bh1
{[%clk 0:00:44]} 62... h5 {[%clk 0:00:44.3]} 63. Kg3 {[%clk 0:00:44.3]} 63... g5
{[%clk 0:00:44.4]} 64. Bf3 {[%clk 0:00:45]} 64... Ra3 {[%clk 0:00:44]} 65. Kg2
{[%clk 0:00:45.2]} 65... g4 {[%clk 0:00:44.2]} 66. Be2 {[%clk 0:00:45.4]} 66...
Kg5 {[%clk 0:00:44.5]} 67. Kf1 {[%clk 0:00:46.3]} 67... h4 {[%clk 0:00:44.7]}
68. Bb5 {[%clk 0:00:46.6]} 68... h3 {[%clk 0:00:44.8]} 69. Bc6 {[%clk
0:00:46.9]} 69... g3 {[%clk 0:00:44.8]} 70. Kg1 {[%clk 0:00:47.8]} 70... Ra1#
{[%clk 0:00:43.9]} 0-1

[Event "Early-Titled-Tuesday-Blitz-May-14-2024"]
[Site "Chess.com"]
[Date "2024.05.14"]
[Round "10"]
[White "TitarovVasiliYouTube"]
[Black "noblerone"]
[Result "1-0"]
[WhiteElo "2623"]
[BlackElo "2503"]
[TimeControl "180+1"]
[EndTime "9:57:39 PDT"]
[Termination "TitarovVasiliYouTube won on time"]

1. Nf3 {[%clk 0:03:00.9]} 1... d5 {[%clk 0:03:00.1]} 2. g3 {[%clk 0:03:01.2]}
2... Nf6 {[%clk 0:03:00.7]} 3. Bg2 {[%clk 0:03:01.1]} 3... c6 {[%clk 0:02:59]}
4. O-O {[%clk 0:03:01.4]} 4... Bf5 {[%clk 0:02:58.5]} 5. d3 {[%clk 0:03:00.6]}
5... e6 {[%clk 0:02:58.1]} 6. c4 {[%clk 0:03:00.9]} 6... Nbd7 {[%clk 0:02:55.9]}
7. Nc3 {[%clk 0:02:56.7]} 7... Bc5 {[%clk 0:02:52.8]} 8. d4 {[%clk 0:02:52.4]}
8... Be7 {[%clk 0:02:48.7]} 9. Qb3 {[%clk 0:02:47.7]} 9... Qb6 {[%clk
0:02:48.3]} 10. c5 {[%clk 0:02:46.1]} 10... Qxb3 {[%clk 0:02:48.5]} 11. axb3
{[%clk 0:02:47]} 11... O-O {[%clk 0:02:47.6]} 12. b4 {[%clk 0:02:47.4]} 12... a6
{[%clk 0:02:47.9]} 13. Nh4 {[%clk 0:02:43.6]} 13... Bc2 {[%clk 0:02:45]} 14. f4
{[%clk 0:02:10.6]} 14... h6 {[%clk 0:02:34.1]} 15. Nf3 {[%clk 0:02:05]} 15...
Ne4 {[%clk 0:02:20.1]} 16. Ne1 {[%clk 0:01:38.4]} 16... Nxc3 {[%clk 0:02:09.4]}
17. bxc3 {[%clk 0:01:39.3]} 17... Be4 {[%clk 0:01:57.9]} 18. Bxe4 {[%clk
0:01:35.9]} 18... dxe4 {[%clk 0:01:58.8]} 19. Nc2 {[%clk 0:01:34.8]} 19... f5
{[%clk 0:01:52.5]} 20. Ne3 {[%clk 0:01:29.5]} 20... Nf6 {[%clk 0:01:52.4]} 21.
Nc4 {[%clk 0:01:25.2]} 21... Nd5 {[%clk 0:01:50.6]} 22. Bd2 {[%clk 0:01:25.1]}
22... Bf6 {[%clk 0:01:34.5]} 23. e3 {[%clk 0:01:22.2]} 23... Kh7 {[%clk
0:01:29.9]} 24. Nd6 {[%clk 0:01:22.1]} 24... Rab8 {[%clk 0:01:27]} 25. c4 {[%clk
0:01:19.2]} 25... Nc7 {[%clk 0:01:20.7]} 26. Rfb1 {[%clk 0:01:16.3]} 26... g5
{[%clk 0:01:11.6]} 27. b5 {[%clk 0:00:58.6]} 27... axb5 {[%clk 0:01:04.3]} 28.
cxb5 {[%clk 0:00:59.5]} 28... gxf4 {[%clk 0:00:47.4]} 29. gxf4 {[%clk
0:01:00.4]} 29... Nd5 {[%clk 0:00:40.4]} 30. Ra7 {[%clk 0:00:48]} 30... Rg8+
{[%clk 0:00:39.8]} 31. Kh1 {[%clk 0:00:44.3]} 31... cxb5 {[%clk 0:00:16.7]} 32.
Rxb5 {[%clk 0:00:45.2]} 32... Rg7 {[%clk 0:00:12.3]} 33. Rbxb7 {[%clk
0:00:34.1]} 33... Rbxb7 {[%clk 0:00:09.2]} 34. Rxb7 {[%clk 0:00:33.3]} 34...
Rxb7 {[%clk 0:00:08.8]} 35. Nxb7 {[%clk 0:00:29.4]} 35... Kg7 {[%clk 0:00:05.3]}
36. c6 {[%clk 0:00:29.2]} 36... Ne7 {[%clk 0:00:02.9]} 37. c7 {[%clk 0:00:26]}
37... Nc8 {[%clk 0:00:02.4]} 38. Nd8 {[%clk 0:00:20.1]} 1-0

[Event "Early-Titled-Tuesday-Blitz-May-14-2024"]
[Site "Chess.com"]
[Date "2024.05.14"]
[Round "10"]
[White "Gryffindorac8"]
[Black "ansko1999"]
[Result "1/2-1/2"]
[WhiteElo "2521"]
[BlackElo "2642"]
[TimeControl "180+1"]
[EndTime "9:57:41 PDT"]
[Termination "Game drawn - insufficient material"]

1. d4 {[%clk 0:03:00.9]} 1... d5 {[%clk 0:02:59.6]} 2. c4 {[%clk 0:03:00.6]}
2... c5 {[%clk 0:02:59.8]} 3. cxd5 {[%clk 0:02:59.6]} 3... Nf6 {[%clk 0:02:59]}
4. Nf3 {[%clk 0:02:53.6]} 4... cxd4 {[%clk 0:02:58.5]} 5. Qxd4 {[%clk
0:02:49.7]} 5... Qxd5 {[%clk 0:02:54.2]} 6. Nc3 {[%clk 0:02:48]} 6... Qxd4
{[%clk 0:02:51.2]} 7. Nxd4 {[%clk 0:02:48.9]} 7... a6 {[%clk 0:02:48.5]} 8. g3
{[%clk 0:02:45.6]} 8... e5 {[%clk 0:02:47.2]} 9. Nb3 {[%clk 0:02:42.7]} 9... Nc6
{[%clk 0:02:45.7]} 10. Bg2 {[%clk 0:02:40.8]} 10... Bb4 {[%clk 0:02:44.5]} 11.
O-O {[%clk 0:02:36.4]} 11... Be6 {[%clk 0:02:39.9]} 12. Bg5 {[%clk 0:02:32.6]}
12... O-O-O {[%clk 0:02:08.6]} 13. Rfc1 {[%clk 0:02:17.3]} 13... h6 {[%clk
0:01:59.5]} 14. Bxf6 {[%clk 0:02:14.2]} 14... gxf6 {[%clk 0:02:00.4]} 15. Ne4
{[%clk 0:02:04.3]} 15... Bxb3 {[%clk 0:01:36.3]} 16. axb3 {[%clk 0:02:02.2]}
16... Be7 {[%clk 0:01:36.9]} 17. Nc5 {[%clk 0:01:56]} 17... Bxc5 {[%clk
0:01:22.4]} 18. Rxc5 {[%clk 0:01:49.9]} 18... Rd6 {[%clk 0:01:18.7]} 19. Bxc6
{[%clk 0:01:48.6]} 19... Rxc6 {[%clk 0:01:17.6]} 20. Rxc6+ {[%clk 0:01:47.5]}
20... bxc6 {[%clk 0:01:18.5]} 21. Rxa6 {[%clk 0:01:46]} 21... Kb7 {[%clk
0:01:19]} 22. Ra4 {[%clk 0:01:43.9]} 22... Rd8 {[%clk 0:01:19.2]} 23. Rh4 {[%clk
0:01:42.9]} 23... Rd2 {[%clk 0:00:54.8]} 24. Rxh6 {[%clk 0:01:41.2]} 24... Rxb2
{[%clk 0:00:55.5]} 25. Rxf6 {[%clk 0:01:41.1]} 25... Rxb3 {[%clk 0:00:56.3]} 26.
h4 {[%clk 0:01:38.8]} 26... c5 {[%clk 0:00:54.8]} 27. h5 {[%clk 0:01:36.8]}
27... c4 {[%clk 0:00:50.7]} 28. h6 {[%clk 0:01:18.1]} 28... c3 {[%clk
0:00:50.6]} 29. Rf3 {[%clk 0:01:16.3]} 29... Rb1+ {[%clk 0:00:47.9]} 30. Kg2
{[%clk 0:01:10.1]} 30... c2 {[%clk 0:00:48.3]} 31. h7 {[%clk 0:00:59.4]} 31...
c1=Q {[%clk 0:00:41.2]} 32. Rxf7+ {[%clk 0:00:58]} 32... Kb6 {[%clk 0:00:28.1]}
33. h8=Q {[%clk 0:00:56.8]} 33... Qf1+ {[%clk 0:00:19.3]} 34. Kf3 {[%clk
0:00:53.1]} 34... e4+ {[%clk 0:00:14.1]} 35. Kg4 {[%clk 0:00:36.3]} 35... Qxe2+
{[%clk 0:00:14.1]} 36. Kg5 {[%clk 0:00:29.9]} 36... Rb5+ {[%clk 0:00:13.8]} 37.
Rf5 {[%clk 0:00:24.7]} 37... Qd2+ {[%clk 0:00:12.2]} 38. Kg6 {[%clk 0:00:22.5]}
38... Rxf5 {[%clk 0:00:07.5]} 39. Kxf5 {[%clk 0:00:21]} 39... Qxf2+ {[%clk
0:00:05.2]} 40. Kxe4 {[%clk 0:00:21]} 40... Qxg3 {[%clk 0:00:04.4]} 41. Qd4+
{[%clk 0:00:20.3]} 41... Kc6 {[%clk 0:00:04.4]} 42. Qd5+ {[%clk 0:00:20]} 42...
Kc7 {[%clk 0:00:04.3]} 43. Qe5+ {[%clk 0:00:20.2]} 43... Qxe5+ {[%clk 0:00:05]}
44. Kxe5 {[%clk 0:00:20.6]} 1/2-1/2

[Event "Early-Titled-Tuesday-Blitz-May-14-2024"]
[Site "Chess.com"]
[Date "2024.05.14"]
[Round "10"]
[White "ajeale2"]
[Black "ketster"]
[Result "1-0"]
[WhiteElo "2515"]
[BlackElo "2632"]
[TimeControl "180+1"]
[EndTime "9:57:41 PDT"]
[Termination "ajeale2 won on time"]

1. d4 {[%clk 0:02:54.3]} 1... d5 {[%clk 0:02:48.6]} 2. Bf4 {[%clk 0:02:54.5]}
2... Nf6 {[%clk 0:02:48.2]} 3. e3 {[%clk 0:02:55]} 3... e6 {[%clk 0:02:48.6]} 4.
Nd2 {[%clk 0:02:55.5]} 4... c5 {[%clk 0:02:49.1]} 5. c3 {[%clk 0:02:55.8]} 5...
Nc6 {[%clk 0:02:49.8]} 6. Ngf3 {[%clk 0:02:55.7]} 6... Nh5 {[%clk 0:02:48.1]} 7.
Bg5 {[%clk 0:02:54.9]} 7... f6 {[%clk 0:02:45]} 8. Bh4 {[%clk 0:02:53.1]} 8...
cxd4 {[%clk 0:02:39.6]} 9. cxd4 {[%clk 0:02:51.6]} 9... g6 {[%clk 0:02:35.7]}
10. Be2 {[%clk 0:02:49.8]} 10... Be7 {[%clk 0:02:30.2]} 11. O-O {[%clk 0:02:46]}
11... O-O {[%clk 0:02:29.1]} 12. Ne1 {[%clk 0:02:43.6]} 12... Ng7 {[%clk
0:02:28.1]} 13. Nd3 {[%clk 0:02:42.2]} 13... Nf5 {[%clk 0:02:27]} 14. Bg3 {[%clk
0:02:41.2]} 14... Nxg3 {[%clk 0:02:27.1]} 15. hxg3 {[%clk 0:02:41]} 15... e5
{[%clk 0:02:24.6]} 16. dxe5 {[%clk 0:02:35.6]} 16... fxe5 {[%clk 0:02:25.5]} 17.
Bg4 {[%clk 0:02:24.2]} 17... Bf6 {[%clk 0:02:07.6]} 18. Bxc8 {[%clk 0:02:16.5]}
18... Rxc8 {[%clk 0:02:07.2]} 19. Qb3 {[%clk 0:02:17]} 19... Na5 {[%clk
0:02:01.7]} 20. Qa4 {[%clk 0:02:17]} 20... Rf7 {[%clk 0:01:45]} 21. Rac1 {[%clk
0:02:12.3]} 21... Nc6 {[%clk 0:01:39.5]} 22. Nc5 {[%clk 0:02:10.6]} 22... Qb6
{[%clk 0:01:36.3]} 23. Qg4 {[%clk 0:02:01.6]} 23... Re8 {[%clk 0:01:16.7]} 24.
Ndb3 {[%clk 0:02:01]} 24... Qb4 {[%clk 0:01:11.4]} 25. Qd1 {[%clk 0:01:48.2]}
25... d4 {[%clk 0:01:05.7]} 26. Qe2 {[%clk 0:01:35.1]} 26... e4 {[%clk
0:00:54.6]} 27. a3 {[%clk 0:01:15.3]} 27... Qb6 {[%clk 0:00:49.3]} 28. Qg4
{[%clk 0:01:10.5]} 28... d3 {[%clk 0:00:44.2]} 29. Rc4 {[%clk 0:01:01]} 29...
Ne5 {[%clk 0:00:40]} 30. Qxe4 {[%clk 0:00:58.9]} 30... Bg7 {[%clk 0:00:27.2]}
31. Rb4 {[%clk 0:00:58.7]} 31... Qd6 {[%clk 0:00:17.2]} 32. Nxb7 {[%clk
0:00:42.4]} 32... Qc7 {[%clk 0:00:15.8]} 33. Qd5 {[%clk 0:00:40.7]} 33... Kh8
{[%clk 0:00:10.2]} 34. N7c5 {[%clk 0:00:35.7]} 34... Rd8 {[%clk 0:00:09.2]} 35.
Qe4 {[%clk 0:00:33]} 35... Re8 {[%clk 0:00:06.5]} 36. Rb7 {[%clk 0:00:31.1]}
36... Qd6 {[%clk 0:00:04.1]} 37. Rxf7 {[%clk 0:00:30.3]} 37... Nf3+ {[%clk
0:00:02.2]} 38. Qxf3 {[%clk 0:00:29.9]} 38... d2 {[%clk 0:00:02.2]} 39. Rd1
{[%clk 0:00:26.3]} 39... Qd8 {[%clk 0:00:00.7]} 40. Rxd2 {[%clk 0:00:23.4]}
40... Rxe3 {[%clk 0:00:01.1]} 41. Rxd8+ {[%clk 0:00:22.8]} 1-0

[Event "Early-Titled-Tuesday-Blitz-May-14-2024"]
[Site "Chess.com"]
[Date "2024.05.14"]
[Round "10"]
[White "Agibileg"]
[Black "IlanSchnaider"]
[Result "1-0"]
[WhiteElo "2889"]
[BlackElo "2732"]
[TimeControl "180+1"]
[EndTime "9:57:43 PDT"]
[Termination "Agibileg won by checkmate"]

1. d4 {[%clk 0:03:00]} 1... Nf6 {[%clk 0:02:59.2]} 2. c4 {[%clk 0:03:00.2]} 2...
g6 {[%clk 0:02:59.9]} 3. Nc3 {[%clk 0:03:00.1]} 3... d5 {[%clk 0:03:00.6]} 4.
cxd5 {[%clk 0:03:00.3]} 4... Nxd5 {[%clk 0:03:01.5]} 5. e4 {[%clk 0:03:00.8]}
5... Nxc3 {[%clk 0:03:02.2]} 6. bxc3 {[%clk 0:03:01.7]} 6... Bg7 {[%clk
0:03:03.1]} 7. Bc4 {[%clk 0:03:02.1]} 7... c5 {[%clk 0:03:02]} 8. Ne2 {[%clk
0:03:02.4]} 8... Nc6 {[%clk 0:03:02.7]} 9. Be3 {[%clk 0:03:02.2]} 9... O-O
{[%clk 0:03:01.9]} 10. O-O {[%clk 0:03:02.2]} 10... b6 {[%clk 0:03:02.3]} 11.
Rc1 {[%clk 0:03:01.3]} 11... Bb7 {[%clk 0:02:55.7]} 12. Bb5 {[%clk 0:03:01.5]}
12... e5 {[%clk 0:02:23.1]} 13. dxc5 {[%clk 0:02:53.6]} 13... Qh4 {[%clk
0:02:00.8]} 14. Ng3 {[%clk 0:02:25.3]} 14... Rfd8 {[%clk 0:01:58.1]} 15. Qe2
{[%clk 0:02:23]} 15... bxc5 {[%clk 0:01:51.6]} 16. Bxc5 {[%clk 0:02:22.1]} 16...
Rac8 {[%clk 0:01:34.8]} 17. Rfd1 {[%clk 0:02:18.3]} 17... Bh6 {[%clk 0:00:57.3]}
18. Rxd8+ {[%clk 0:02:15.9]} 18... Qxd8 {[%clk 0:00:57.7]} 19. Rd1 {[%clk
0:02:08.5]} 19... Qa5 {[%clk 0:00:57.9]} 20. Rd7 {[%clk 0:02:00.8]} 20... Qxc3
{[%clk 0:00:47.6]} 21. Bc4 {[%clk 0:01:46.3]} 21... Nd8 {[%clk 0:00:47.1]} 22.
Be7 {[%clk 0:01:16.2]} 22... Nc6 {[%clk 0:00:04.2]} 23. Bxf7+ {[%clk 0:01:14.5]}
23... Kg7 {[%clk 0:00:01.8]} 24. Rxb7 {[%clk 0:01:04.5]} 24... Nxe7 {[%clk
0:00:01.3]} 25. Rxe7 {[%clk 0:01:03.9]} 25... Kf8 {[%clk 0:00:01.5]} 26. Rxa7
{[%clk 0:01:03.2]} 26... Qc5 {[%clk 0:00:01.5]} 27. Be6 {[%clk 0:01:00.3]} 27...
Qxa7 {[%clk 0:00:01]} 28. Bxc8 {[%clk 0:00:59.9]} 28... Qc5 {[%clk 0:00:01.8]}
29. Be6 {[%clk 0:00:59.1]} 29... Qc6 {[%clk 0:00:01.6]} 30. Bd5 {[%clk 0:00:59]}
30... Qc1+ {[%clk 0:00:02.3]} 31. Nf1 {[%clk 0:00:59.2]} 31... Qa1 {[%clk
0:00:02.6]} 32. Qf3+ {[%clk 0:00:58.4]} 32... Ke7 {[%clk 0:00:03]} 33. Qf7+
{[%clk 0:00:58.8]} 33... Kd6 {[%clk 0:00:03.6]} 34. Qxh7 {[%clk 0:00:58.5]}
34... Bf4 {[%clk 0:00:04.3]} 35. Qxg6+ {[%clk 0:00:58.8]} 35... Kc5 {[%clk
0:00:05]} 36. Qc6+ {[%clk 0:00:59.2]} 36... Kb4 {[%clk 0:00:05.6]} 37. Qc4+
{[%clk 0:00:57.4]} 37... Ka5 {[%clk 0:00:05.3]} 38. g3 {[%clk 0:00:57.3]} 38...
Bd2 {[%clk 0:00:04.2]} 39. Qc5+ {[%clk 0:00:57.4]} 39... Ka6 {[%clk 0:00:02.2]}
40. h4 {[%clk 0:00:54.6]} 40... Bc3 {[%clk 0:00:01.4]} 41. Bc4+ {[%clk
0:00:49.7]} 41... Kb7 {[%clk 0:00:01.4]} 42. Bd5+ {[%clk 0:00:50.1]} 42... Ka6
{[%clk 0:00:01.5]} 43. Qc8+ {[%clk 0:00:50.4]} 43... Ka5 {[%clk 0:00:01.3]} 44.
Qa8+ {[%clk 0:00:48.7]} 44... Kb6 {[%clk 0:00:01.2]} 45. Qc6+ {[%clk 0:00:47.6]}
45... Ka5 {[%clk 0:00:01.3]} 46. Bc4 {[%clk 0:00:47.8]} 46... Kb4 {[%clk
0:00:01.2]} 47. Qb5+ {[%clk 0:00:47.5]} 47... Ka3 {[%clk 0:00:01.7]} 48. Qb3#
{[%clk 0:00:48.4]} 1-0

[Event "Early-Titled-Tuesday-Blitz-May-14-2024"]
[Site "Chess.com"]
[Date "2024.05.14"]
[Round "10"]
[White "Raskolnikov6"]
[Black "zozik"]
[Result "0-1"]
[WhiteElo "2428"]
[BlackElo "2352"]
[TimeControl "180+1"]
[EndTime "9:57:44 PDT"]
[Termination "zozik won on time"]

1. d4 {[%clk 0:03:00.9]} 1... Nf6 {[%clk 0:02:59.4]} 2. c4 {[%clk 0:03:01.2]}
2... c5 {[%clk 0:02:59.5]} 3. d5 {[%clk 0:03:01.2]} 3... b5 {[%clk 0:02:59.6]}
4. cxb5 {[%clk 0:03:00.6]} 4... a6 {[%clk 0:03:00.2]} 5. bxa6 {[%clk 0:03:01.5]}
5... Bxa6 {[%clk 0:02:59.7]} 6. Nc3 {[%clk 0:03:01.4]} 6... d6 {[%clk 0:03:00]}
7. e4 {[%clk 0:03:00]} 7... Bxf1 {[%clk 0:02:58.7]} 8. Kxf1 {[%clk 0:03:00.9]}
8... g6 {[%clk 0:02:58.6]} 9. g3 {[%clk 0:03:01.5]} 9... Bg7 {[%clk 0:02:59.2]}
10. Kg2 {[%clk 0:03:02.2]} 10... O-O {[%clk 0:02:59.2]} 11. Nf3 {[%clk
0:03:02.9]} 11... Nbd7 {[%clk 0:02:58]} 12. a4 {[%clk 0:03:03.2]} 12... Ng4
{[%clk 0:02:56]} 13. Ra3 {[%clk 0:02:52.3]} 13... Qa5 {[%clk 0:02:55.3]} 14. Bd2
{[%clk 0:02:51.7]} 14... Qb4 {[%clk 0:02:49.2]} 15. Rb3 {[%clk 0:02:49.4]} 15...
Qa5 {[%clk 0:02:48.5]} 16. Rb5 {[%clk 0:02:35.4]} 16... Qa7 {[%clk 0:02:39.8]}
17. b3 {[%clk 0:02:34.4]} 17... c4 {[%clk 0:02:37.2]} 18. Rf1 {[%clk 0:02:20.7]}
18... cxb3 {[%clk 0:02:29.2]} 19. Qxb3 {[%clk 0:02:20.7]} 19... Nc5 {[%clk
0:02:28.7]} 20. Qc4 {[%clk 0:02:09.6]} 20... Bxc3 {[%clk 0:02:23.7]} 21. Bxc3
{[%clk 0:02:05.6]} 21... Qxa4 {[%clk 0:02:24.3]} 22. Rb4 {[%clk 0:02:02.8]}
22... Qc2 {[%clk 0:02:17.3]} 23. Qd4 {[%clk 0:01:38]} 23... f6 {[%clk
0:02:06.8]} 24. Rc4 {[%clk 0:01:22]} 24... Ne5 {[%clk 0:01:50.9]} 25. Nxe5
{[%clk 0:01:18.1]} 25... fxe5 {[%clk 0:01:51.8]} 26. Qd2 {[%clk 0:01:12.5]}
26... Ra2 {[%clk 0:01:41.4]} 27. Qe3 {[%clk 0:00:44.1]} 27... Qb3 {[%clk
0:01:13.7]} 28. Rb4 {[%clk 0:00:31.9]} 28... Qa3 {[%clk 0:00:58]} 29. Rc4 {[%clk
0:00:29.2]} 29... Rc2 {[%clk 0:00:49.9]} 30. Kh3 {[%clk 0:00:12.8]} 30... Qa6
{[%clk 0:00:45.7]} 31. Rxc5 {[%clk 0:00:02.4]} 31... Qxf1+ {[%clk 0:00:45.1]}
32. Kg4 {[%clk 0:00:01.7]} 32... dxc5 {[%clk 0:00:43.3]} 33. Bxe5 {[%clk
0:00:02.1]} 33... Qxf2 {[%clk 0:00:41]} 34. Qh6 {[%clk 0:00:02.6]} 34... Qe2+
{[%clk 0:00:35.2]} 35. Kg5 {[%clk 0:00:02.1]} 35... Qh5+ {[%clk 0:00:30]} 36.
Qxh5 {[%clk 0:00:01.7]} 36... gxh5 {[%clk 0:00:30.9]} 37. Bf4 {[%clk 0:00:00.4]}
37... Rxh2 {[%clk 0:00:29.8]} 38. e5 {[%clk 0:00:00.3]} 38... Re2 {[%clk
0:00:25.1]} 39. d6 {[%clk 0:00:00.5]} 39... exd6 {[%clk 0:00:24.4]} 40. exd6
{[%clk 0:00:01.4]} 40... c4 {[%clk 0:00:23.3]} 0-1

[Event "Early-Titled-Tuesday-Blitz-May-14-2024"]
[Site "Chess.com"]
[Date "2024.05.14"]
[Round "10"]
[White "WilsonPalencia21"]
[Black "JaloliddinIlkhomi"]
[Result "1-0"]
[WhiteElo "2614"]
[BlackElo "2744"]
[TimeControl "180+1"]
[EndTime "9:57:46 PDT"]
[Termination "WilsonPalencia21 won by resignation"]

1. d4 {[%clk 0:03:00.9]} 1... Nf6 {[%clk 0:02:58.3]} 2. c4 {[%clk 0:03:01.1]}
2... e6 {[%clk 0:02:58.7]} 3. Nf3 {[%clk 0:03:01.6]} 3... b6 {[%clk 0:02:58.9]}
4. g3 {[%clk 0:03:01.1]} 4... Bb7 {[%clk 0:02:59.2]} 5. Bg2 {[%clk 0:03:00.8]}
5... Bb4+ {[%clk 0:02:59.8]} 6. Bd2 {[%clk 0:02:56.6]} 6... Bxd2+ {[%clk
0:02:58.4]} 7. Qxd2 {[%clk 0:02:55.1]} 7... O-O {[%clk 0:02:57.2]} 8. Nc3 {[%clk
0:02:55.3]} 8... Ne4 {[%clk 0:02:52.9]} 9. Nxe4 {[%clk 0:02:55.1]} 9... Bxe4
{[%clk 0:02:53.8]} 10. O-O {[%clk 0:02:55.5]} 10... d6 {[%clk 0:02:53.5]} 11. a4
{[%clk 0:02:52.1]} 11... a5 {[%clk 0:02:53.2]} 12. Rfc1 {[%clk 0:02:51]} 12...
Nd7 {[%clk 0:02:52.5]} 13. Bf1 {[%clk 0:02:51.2]} 13... f5 {[%clk 0:02:52.2]}
14. Ne1 {[%clk 0:02:50.9]} 14... Bb7 {[%clk 0:02:47.9]} 15. f4 {[%clk
0:02:49.6]} 15... Nf6 {[%clk 0:02:47.4]} 16. e3 {[%clk 0:02:47]} 16... Ne4
{[%clk 0:02:41.2]} 17. Qc2 {[%clk 0:02:47]} 17... g5 {[%clk 0:02:37.7]} 18. Bg2
{[%clk 0:02:45.9]} 18... h5 {[%clk 0:02:31.2]} 19. Qe2 {[%clk 0:02:37.5]} 19...
g4 {[%clk 0:02:30.3]} 20. Nd3 {[%clk 0:02:30.6]} 20... h4 {[%clk 0:02:29.9]} 21.
Nf2 {[%clk 0:02:04.7]} 21... hxg3 {[%clk 0:02:09]} 22. Nxe4 {[%clk 0:02:03.1]}
22... gxh2+ {[%clk 0:02:09.5]} 23. Kh1 {[%clk 0:02:03.1]} 23... Bxe4 {[%clk
0:02:02.5]} 24. Bxe4 {[%clk 0:02:02.6]} 24... fxe4 {[%clk 0:02:03.4]} 25. Qxg4+
{[%clk 0:02:02.2]} 25... Kf7 {[%clk 0:02:04]} 26. f5 {[%clk 0:01:43.1]} 26...
Qf6 {[%clk 0:01:51]} 27. fxe6+ {[%clk 0:01:35.2]} 27... Qxe6 {[%clk 0:01:48.5]}
28. Rf1+ {[%clk 0:01:28.1]} 28... Ke7 {[%clk 0:01:45.5]} 29. Qh4+ {[%clk
0:01:25.4]} 29... Kd7 {[%clk 0:01:38.4]} 30. d5 {[%clk 0:00:47.6]} 30... Qg6
{[%clk 0:01:27.5]} 31. Qh3+ {[%clk 0:00:44.3]} 31... Ke7 {[%clk 0:01:26.6]} 32.
Qh4+ {[%clk 0:00:39.1]} 32... Kd7 {[%clk 0:01:25.3]} 33. Qh3+ {[%clk 0:00:38]}
33... Ke8 {[%clk 0:00:38.3]} 34. Rxf8+ {[%clk 0:00:32.4]} 34... Kxf8 {[%clk
0:00:39.2]} 35. Rf1+ {[%clk 0:00:18.9]} 35... Ke7 {[%clk 0:00:26.1]} 36. Qh4+
{[%clk 0:00:17.7]} 36... Kd7 {[%clk 0:00:26.7]} 37. Qh3+ {[%clk 0:00:15.5]}
37... Ke7 {[%clk 0:00:27.3]} 38. Qh4+ {[%clk 0:00:14.9]} 38... Kd7 {[%clk
0:00:28]} 39. Qh3+ {[%clk 0:00:14.6]} 39... Kd8 {[%clk 0:00:25.9]} 40. Qh8+
{[%clk 0:00:13.2]} 40... Kd7 {[%clk 0:00:21.6]} 41. Qxa8 {[%clk 0:00:11]} 41...
Qg7 {[%clk 0:00:14.7]} 42. Qf8 {[%clk 0:00:09.7]} 1-0